[Event "VII Copa Marcel Duchamp 2024"]
[Site "Montevideo"]
[Date "2024.02.05"]
[Round "1.1"]
[White "Meier, Georg"]
[Black "Amaral, Francisco"]
[Result "1-0"]
[ECO "A09"]
[WhiteElo "2620"]
[BlackElo "1768"]
[Annotator "TA"]
[PlyCount "41"]
[EventDate "2024.02.05"]
[EventType "swiss"]
[EventCountry "URU"]
[SourceTitle "playchess.com"]
[Source "ChessBase"]
[SourceQuality "1"]
[TimeControl "5400+30"]

{[%evp 11,41,0,4,-8,28,19,17,26,29,20,41,32,65,62,61,54,59,60,65,41,47,-6,0,0,0,0,122,0,211,110,319,324]} 1. Nf3 Nf6 2. g3 d5 3. Bg2 e6 4. O-O c5 5. c4 d4 6. d3 Nc6 7. e3 h6 8. exd4 cxd4 9. Bf4 {The position is equal.} Bd6 10. Bxd6 Qxd6 11. Nbd2 e5 12. Rc1 Be6 13. a3 a5 14. c5 Qc7 15. Nc4 {Threatens to win with Nd6+.} O-O 16. Qe1 (16. Nb6 $14) 16... Nd7 {[%cal Oa5a4]} 17. b4 axb4 18. axb4 f6 (18... Ra4 $11 {remains equal.} 19. b5 e4 20. Qxe4 Nxc5) 19. b5 ({White should try} 19. Nd6 $16) 19... Ne7 $2 {[#]} (19... Nxc5 $1 $11 {and Black is okay.} 20. bxc6 Nxd3 21. Nxd4 (21. cxb7 Nxe1 22. bxa8=Q Rxa8 $16) 21... Nxe1 22. Nxe6 Qe7 23. Nxf8 Nxg2) 20. Nxd4 (20. c6 $1 $18 {[%cal Rc6d7]} bxc6 21. Nxd4) 20... Bf7 $2 (20... Nxc5 $16 21. Nxe6 Nxe6) 21. Nd6 {Weighted Error Value: White=0.27 (precise) /Black=0.56.  Loses game:     	---       	Black=2      Mistake:       	White=3     	Black=1      Inaccurate:     	---       	Black=2      OK:         	White=7     	Black=4      Best:        	White=1     	Black=1} 1-0

[Event "VII Copa Marcel Duchamp 2024"]
[Site "Montevideo"]
[Date "2024.02.05"]
[Round "1.2"]
[White "Quevedo, Andreina"]
[Black "Krysa, Leandro"]
[Result "0-1"]
[ECO "B85"]
[WhiteElo "1762"]
[BlackElo "2541"]
[Annotator "TA"]
[PlyCount "42"]
[EventDate "2024.02.05"]
[EventType "swiss"]
[EventCountry "URU"]
[SourceTitle "playchess.com"]
[Source "ChessBase"]
[SourceQuality "1"]
[TimeControl "5400+30"]

{[%evp 21,42,13,12,-15,0,-8,0,0,0,-130,-116,-159,-170,-211,-183,-384,-381,-409,-407,-399,-385,-495,-460]} 1. e4 c5 2. Nf3 Nc6 3. d4 cxd4 4. Nxd4 Nf6 5. Nc3 d6 6. Be2 e6 7. O-O Be7 8. Be3 O-O 9. f4 a6 10. Kh1 Bd7 11. Qe1 b5 12. Bf3 {[%cal Oe4e5]} Rc8 13. Rc1 Na5 {[%cal Bc6a5,Ba5b7,Bb7d6][%mdl 32]} 14. b3 {Inhibits Nc4. The position is equal.} Qc7 15. Nce2 (15. Bd2 $11 Nc6 16. Nde2) 15... e5 $17 16. Bd2 {[#]} Nb7 {Black is more active.} 17. fxe5 ({Wrong is} 17. Nf5 $2 Bxf5 18. Ng3 (18. exf5 $2 {is the wrong capture.} e4 $19) 18... Bd7 $19) 17... dxe5 {[%cal Oe7a3]} 18. Nf5 $2 (18. Rd1 {is a better defense.}) 18... Bxf5 $19 19. exf5 e4 20. Bf4 Bd6 21. Bxd6 Nxd6 {Black took control after the opening.   Weighted Error Value: White=0.65/Black=0.03 (flawless) .  Mistake:       	White=2     	---        Inaccurate:     	White=1     	---        OK:         	---       	Black=2      Best:        	---       	Black=3} 0-1

[Event "VII Copa Marcel Duchamp 2024"]
[Site "Montevideo"]
[Date "2024.02.05"]
[Round "1.3"]
[White "Tristan, Leonardo"]
[Black "Ramos, Matias"]
[Result "1-0"]
[ECO "D00"]
[WhiteElo "2515"]
[BlackElo "1754"]
[Annotator "TA"]
[PlyCount "63"]
[EventDate "2024.02.05"]
[EventType "swiss"]
[EventCountry "URU"]
[SourceTitle "playchess.com"]
[Source "ChessBase"]
[SourceQuality "1"]
[TimeControl "5400+30"]

{[%evp 12,63,18,4,18,18,23,16,20,20,11,6,26,0,0,0,10,0,24,6,10,0,9,0,0,-8,16,10,6,0,12,8,24,8,34,0,18,0,13,0,0,0,17,7,14,4,7,2,0,8,118,106,1066,1068]} 1. d4 d5 2. Bg5 Nf6 3. e3 Bf5 4. Bxf6 exf6 5. Bd3 Bxd3 6. Qxd3 c6 7. Nf3 Bd6 8. O-O O-O 9. Nbd2 Nd7 {The position is equal.} 10. c4 dxc4 11. Nxc4 Nb6 12. Na5 Rb8 13. Rac1 Nd5 14. Nc4 Re8 15. g3 Bf8 16. a3 Nb6 17. Ncd2 Qd7 18. Qc2 Rbc8 19. b4 Nd5 {[%cal Bb6d5,Bd5e7,Be7f5][%mdl 32]} 20. Nc4 Ne7 21. Rfd1 Nf5 22. Qb3 Nd6 23. Ncd2 {[%cal Bc4d2,Bd2b3,Bb3c5,Bc5b7,Bb7d8][%mdl 32]} g6 24. Kg2 Bg7 25. d5 cxd5 26. Qxd5 {Black must now prevent Rxc8.} Qe6 27. Qxe6 fxe6 28. Nb3 Bf8 29. Rxc8 Rxc8 30. Nc5 Kf7 {[#]} (30... e5 $1 $11) 31. Nxb7 $1 $16 {[%mdl 512] White has more active pieces.} Rc6 {[%mdl 8192]} (31... Nc4 $16) (31... Ne4 32. Nd2) 32. Nd8+ {Weighted Error Value: White=0.08 (flawless) /Black=0.15 (very precise) .  Loses game:     	---       	Black=1      Mistake:       	---       	Black=1      Inaccurate:     	White=1     	Black=1      OK:         	White=6     	Black=8      Best:        	White=2     	---        Brilliant:      	White=1     	---} 1-0

[Event "VII Copa Marcel Duchamp 2024"]
[Site "Montevideo"]
[Date "2024.02.05"]
[Round "2.1"]
[White "Meza, Anahi"]
[Black "Meier, Georg"]
[Result "0-1"]
[ECO "E13"]
[WhiteElo "2040"]
[BlackElo "2620"]
[Annotator "TA"]
[PlyCount "98"]
[EventDate "2024.02.05"]
[EventType "swiss"]
[EventCountry "URU"]
[SourceTitle "playchess.com"]
[Source "ChessBase"]
[SourceQuality "1"]
[TimeControl "5400+30"]

{[%evp 18,98,-17,-20,-29,-32,-17,-34,-36,-34,-39,-42,-27,-22,-29,-15,-14,-44,-57,-130,-118,-144,-138,-196,-183,-234,-205,-253,-215,-202,-222,-186,-201,-208,-148,-219,-193,-259,-245,-285,-274,-443,-370,-356,-219,-217,-214,-314,-319,-325,-323,-300,-312,-305,-326,-438,-429,-423,-409,-1103,-1141,-980,-979,-2083,-2035,-2367,-29968,-29968,-29969,-29981,-29981,-29981,-29982,-29982,-29983,-29983,-29984,-29984,-29985,-29985,-29986,-29986,-29987]} 1. d4 {[%emt 0:00:02]} e6 2. c4 {[%emt 0:00:15]} b6 {[%emt 0:00:13]} 3. Nc3 {[%emt 0:01:13]} Bb4 4. Nf3 {[%emt 0:07:23]} Bb7 {[%emt 0:01:27]} 5. Bg5 {[%emt 0:01:01]} Nf6 6. Rc1 {[%emt 0:05:12]} h6 {[%emt 0:12:48]} 7. Bh4 {[%emt 0:19:26]} g5 {[%emt 0:06:59]} 8. Bg3 {[%emt 0:03:20]} Ne4 {[%emt 0:00:07]} 9. e3 {[%emt 0:00:27]} Bxc3+ {[%emt 0:02:52]} 10. bxc3 {[%emt 0:00:06]} d6 {[%emt 0:00:07]} 11. Bd3 {[%emt 0:07:26]} Nd7 {[%emt 0:01:18]} 12. Bxe4 {[%emt 0:09:01]} Bxe4 {[%emt 0:00:08] Black is slightly better.} 13. O-O {[%emt 0:08:09]} Qe7 {[%emt 0:01:36]} 14. Nd2 {[%emt 0:00:51]} Bb7 {[%emt 0:02:38]} 15. c5 {[%emt 0:07:06]} bxc5 {[%emt 0:00:39]} 16. Rb1 {[%emt 0:00:10]} Bc6 {[%emt 0:02:28]} 17. Nc4 {[%emt 0:01:58]} O-O {[%emt 0:00:49]} 18. f4 {[%emt 0:05:45] White is on the road to losing.} (18. Na5 $15 Be4 19. Rc1) 18... f5 $17 {[%emt 0:02:24]} 19. fxg5 {[%emt 0:01:52]} hxg5 {[%emt 0:04:50]} 20. Qh5 {[%emt 0:03:45]} (20. Qe2 $17) 20... Qg7 $19 {[%emt 0:02:38][%cal Of5f4]} 21. Rb2 {[%emt 0:01:39]} (21. Qe2 {keeps fighting.}) 21... Rf7 {[%emt 0:07:32]} 22. Nd2 {[%emt 0:08:29]} Nf6 {[%emt 0:01:06]} 23. Qe2 {[%emt 0:00:25]} cxd4 {[%emt 0:01:03]} 24. cxd4 {[%emt 0:00:29]} Raf8 {[%emt 0:06:06]} 25. Rc2 {[%emt 0:02:15]} Be4 {[%emt 0:00:30]} 26. Rb2 {[%emt 0:00:39]} (26. Nxe4 $17 Nxe4 27. a4) 26... Ba8 {[%emt 0:03:34]} 27. a4 {[%emt 0:00:31]} (27. Rb3 $142) 27... Nd5 {[%emt 0:00:22]} 28. Bf2 {[%emt 0:03:57]} g4 {[%emt 0:01:14][%cal Og4g3]} 29. e4 $2 {[%emt 0:00:33]} (29. Rb3) 29... fxe4 {[%emt 0:05:08] [#] Hoping for ...Nf4.} 30. Be3 {[%emt 0:01:13]} Rxf1+ {[%emt 0:06:31]} 31. Nxf1 {[%emt 0:00:01]} Nxe3 {[%emt 0:00:44]} 32. Qxe3 {[%emt 0:00:15]} (32. Nxe3 {was worth a try.} g3 (32... Qxd4 33. Qxg4+ Kf7 34. Rf2+ Ke7 35. Qg5+ Ke8 36. Qh5+ Ke7 37. Qh7+ Ke8 38. Qh5+ Ke7 39. Qg5+ Ke8 40. Qh5+ $11) 33. hxg3) 32... c5 {[%emt 0:00:11]} 33. Rd2 {[%emt 0:00:22]} cxd4 {[%emt 0:00:10]} 34. Rxd4 {[%emt 0:00:15]} d5 {[%emt 0:00:27]} 35. Rd1 {[%emt 0:00:57]} e5 {[%emt 0:00:19]} 36. Ng3 {[%emt 0:00:46]} d4 {[%emt 0:00:09]} 37. Qb3+ {[%emt 0:00:45]} Qf7 {[%emt 0:05:01]} 38. Qb5 {[%emt 0:00:10]} (38. Qb1 $142) 38... e3 {[%emt 0:03:20]} 39. Rf1 {[%emt 0:00:51] Repels Qf2+} Qd5 {[%emt 0:00:33]} 40. Qe2 {[%emt 0:00:58]} Rxf1+ {[%emt 0:00:46]} 41. Nxf1 {[%emt 0:00:08] [#]} Qxg2+ $1 {[%emt 0:00:14][%mdl 512]} 42. Qxg2 {[%emt 0:00:21] Black mates.} Bxg2 {[%emt 0:00:08]} 43. Nxe3 {[%emt 0:00:12]} dxe3 {[%emt 0:01:34]} 44. Kxg2 {[%emt 0:00:01] KP-KP} Kf7 {[%emt 0:00:13]} 45. Kf1 {[%emt 0:00:09]} Kg6 {[%emt 0:00:12]} 46. Ke2 {[%emt 0:00:19]} Kf5 {[%emt 0:00:07]} 47. Kxe3 {[%emt 0:00:10]} a5 {[%emt 0:00:04]} 48. Ke2 {[%emt 0:00:42]} Ke4 {[%emt 0:00:06]} 49. Kd2 {[%emt 0:00:38]} Kf3 {[%emt 0:00:07] Weighted Error Value: White=0.73/Black=0.13 (very precise) .  Mistake:       	White=8     	---        Inaccurate:     	White=2     	Black=1      OK:         	White=10    	Black=17     Best:        	White=1     	Black=1} 0-1

[Event "VII Copa Marcel Duchamp 2024"]
[Site "Montevideo"]
[Date "2024.02.05"]
[Round "2.2"]
[White "Krysa, Leandro"]
[Black "Pichuaga, Juan Pablo"]
[Result "1-0"]
[ECO "A25"]
[WhiteElo "2541"]
[BlackElo "1973"]
[Annotator "TA"]
[PlyCount "103"]
[EventDate "2024.02.05"]
[EventType "swiss"]
[EventCountry "URU"]
[SourceTitle "playchess.com"]
[Source "ChessBase"]
[SourceQuality "1"]
[TimeControl "5400+30"]

{[%evp 14,103,19,16,35,22,20,22,28,-6,28,27,23,34,37,27,29,16,33,42,36,-15,62,56,50,51,42,18,11,0,15,27,44,41,64,55,65,79,64,64,64,64,62,52,63,54,67,44,56,62,50,39,64,59,81,70,66,66,73,74,60,66,70,30,31,27,94,84,77,77,313,306,306,291,535,470,530,454,862,823,1068,1093,1531,1450,1665,1127,2300,1960,2391,2318,29963,29967]} 1. c4 {[%emt 0:00:08]} e5 {[%emt 0:03:51]} 2. g3 {[%emt 0:01:01]} Nc6 {[%emt 0:00:55]} 3. Bg2 {[%emt 0:00:40]} d6 {[%emt 0:00:35]} 4. Nc3 {[%emt 0:00:46]} g6 {[%emt 0:02:38]} 5. e3 {[%emt 0:01:09]} Bg7 {[%emt 0:00:50]} 6. Nge2 {[%emt 0:00:18]} Nf6 {[%emt 0:03:34]} 7. O-O {[%emt 0:05:03]} O-O {[%emt 0:01:20]} 8. d3 {[%emt 0:00:44]} Ne7 {[%emt 0:03:49]} 9. b3 {[%emt 0:07:21]} c6 {[%emt 0:04:48]} 10. Ba3 {[%emt 0:02:58]} Re8 {[%emt 0:06:24] The position is equal.} 11. e4 {[%emt 0:05:09]} Bg4 {[%emt 0:08:13]} 12. h3 {[%emt 0:05:40]} Bxe2 {[%emt 0:01:55]} 13. Nxe2 {[%emt 0:01:31]} Rb8 {[%emt 0:09:17]} 14. d4 {[%emt 0:05:19]} exd4 {[%emt 0:11:17]} 15. Nxd4 {[%emt 0:01:25]} d5 {[%emt 0:04:33]} 16. exd5 {[%emt 0:14:57]} cxd5 {[%emt 0:00:38]} 17. Nb5 {[%emt 0:02:19]} (17. Re1 $14) 17... Nc8 {[%emt 0:09:58]} (17... Nf5 $11) 18. Bb2 {[%emt 0:13:26]} ({But not} 18. Bxd5 Nxd5 19. Qxd5 Qxd5 20. cxd5 Bxa1 21. Rxa1 Nb6 $17) 18... a6 {[%emt 0:08:56]} 19. Na3 {[%emt 0:00:58]} Nb6 {[%emt 0:00:40]} 20. cxd5 {[%emt 0:14:00]} Nfxd5 {[%emt 0:03:21][%cal Bf6d5,Bd5b4,Bb4c6][%mdl 32]} 21. Qd2 {[%emt 0:01:02]} Bxb2 {[%emt 0:01:26]} 22. Qxb2 {[%emt 0:00:05]} Qe7 {[%emt 0:01:48]} 23. Rfd1 {[%emt 0:04:29]} Rbd8 {[%emt 0:01:14]} 24. Nc4 {[%emt 0:02:31]} Nxc4 {[%emt 0:01:29]} 25. bxc4 {[%emt 0:00:06]} Nb4 {[%emt 0:00:22]} 26. Rxd8 {[%emt 0:02:36]} Rxd8 {[%emt 0:00:06]} 27. Rb1 {[%emt 0:01:43]} Nc6 {[%emt 0:01:05]} 28. Bd5 {[%emt 0:04:06]} (28. Qxb7 Rb8 29. Bxc6 Rxb7 30. Rxb7 Qe2 $16) 28... Rd7 {[%emt 0:03:23]} 29. Kg2 {[%emt 0:01:07]} Nd8 {[%emt 0:00:14][%cal Ob7b5]} 30. Qb6 {[%emt 0:00:32]} Kg7 {[%emt 0:01:30]} 31. a4 {[%emt 0:00:27]} Qf6 {[%emt 0:00:29]} 32. a5 {[%emt 0:00:22]} Qe5 {[%emt 0:00:35]} 33. Rb3 {[%emt 0:00:52]} Rd6 {[%emt 0:00:48]} 34. Qe3 {[%emt 0:00:56]} Qxe3 {[%emt 0:01:40]} 35. fxe3 $14 {[%emt 0:00:03][%mdl 4096] Endgame. KRB-KRN} Rd7 {[%emt 0:00:18]} 36. Rb6 {[%emt 0:00:26]} Kf8 {[%emt 0:00:13]} 37. Kf3 {[%emt 0:01:09]} Ke7 {[%emt 0:00:25]} 38. e4 {[%emt 0:00:37]} Rc7 {[%emt 0:02:00]} 39. Ke3 {[%emt 0:00:47]} Kd7 {[%emt 0:01:10]} (39... Rc5 $11) 40. Kd4 $16 {[%emt 0:00:15] White is much more active.} Ke7 {[%emt 0:01:35]} 41. g4 {[%emt 0:01:02][%cal Bg3g4,Bg4g5][%mdl 32]} Ne6+ $2 {[%emt 0:00:39] [#] This costs Black the game.} (41... Ke8 $16 42. h4 Ke7) 42. Bxe6 $18 {[%emt 0:00:29]} fxe6 {[%emt 0:00:07] KR-KR} 43. g5 {[%emt 0:00:08] c5 is the strong threat.} Kd7 $2 {[%emt 0:01:06]} (43... h6 {was worth a try.} 44. gxh6 Kf6) 44. Ke5 {[%emt 0:00:43]} Rc5+ {[%emt 0:00:41]} 45. Kf6 {[%emt 0:00:10]} Rxc4 {[%emt 0:00:26]} (45... Kc8 $142 46. Rxe6 (46. Kxe6 Rxa5 47. e5 Kc7 $16) 46... Rxc4 47. Re8+ Kd7 48. Re7+ Kc6 49. Rxh7 Rxe4 50. Kxg6 Rc4) 46. Rxb7+ {[%emt 0:00:17]} Kc6 {[%emt 0:00:26]} 47. Rxh7 {[%emt 0:00:27]} Rxe4 {[%emt 0:00:15]} 48. Kxg6 {[%emt 0:00:06]} Rf4 {[%emt 0:00:33]} 49. h4 {[%emt 0:01:01][%cal Bh3h4,Bh4h5,Bh5h6][%mdl 32] [#] Threatens to win with h5.} e5 {[%emt 0:00:06][%cal Be6e5,Be5e4,Be4e3][%mdl 32]} 50. h5 {[%emt 0:00:11] Strongly threatening h6.} e4 {[%emt 0:00:23]} 51. h6 {[%emt 0:00:19] Re7 would kill now.} e3 {[%emt 0:01:15]} 52. Re7 {[%emt 0:00:19] Weighted Error Value: White=0.08 (flawless) /Black=0.50.  Loses game:     	---       	Black=1      Mistake:       	White=1     	Black=4      Inaccurate:     	White=2     	Black=1      OK:         	White=16    	Black=10     Best:        	White=3     	---} 1-0

[Event "VII Copa Marcel Duchamp 2024"]
[Site "Montevideo"]
[Date "2024.02.05"]
[Round "2.3"]
[White "Santos Izquierdo, Daniel"]
[Black "Tristan, Leonardo"]
[Result "1/2-1/2"]
[ECO "D04"]
[WhiteElo "2091"]
[BlackElo "2515"]
[Annotator "TA"]
[PlyCount "105"]
[EventDate "2024.02.05"]
[EventType "swiss"]
[EventCountry "URU"]
[SourceTitle "playchess.com"]
[Source "ChessBase"]
[SourceQuality "1"]
[TimeControl "5400+30"]

{[%evp 9,105,-13,-8,-2,0,-16,-8,0,0,-9,-18,-34,0,-54,0,-23,0,0,19,15,37,-27,39,0,34,31,39,0,35,31,36,36,41,47,45,0,0,0,0,0,4,2,22,0,0,0,15,4,1,0,0,0,6,0,0,0,0,0,0,0,0,0,0,0,0,0,0,0,0,0,0,0,0,0,0,-37,0,0,0,0,0,0,0,0,0,0,0,0,0,0,0,0,0,0,0,0,0,0]} 1. Nf3 {[%emt 0:05:22]} d5 {[%emt 0:01:00]} 2. d4 {[%emt 0:00:23]} Nf6 {[%emt 0:00:30]} 3. e3 {[%emt 0:00:17]} c5 {[%emt 0:01:26]} 4. b3 {[%emt 0:01:06]} cxd4 5. exd4 {[%emt 0:00:19]} Nc6 {[%emt 0:01:20]} 6. Bb2 {[%emt 0:04:50]} Bf5 {[%emt 0:03:49]} 7. Be2 {[%emt 0:09:37]} h6 {[%emt 0:09:15]} 8. O-O {[%emt 0:01:34]} e6 {[%emt 0:00:06]} 9. a3 {[%emt 0:01:27]} Be7 {[%emt 0:04:43]} 10. c4 {[%emt 0:18:51]} O-O {[%emt 0:12:43]} 11. Nc3 {[%emt 0:01:56]} ({White should try} 11. c5 $11) 11... Ne4 {[%emt 0:08:16]} (11... dxc4 $1 $15 12. bxc4 Rc8) 12. Nxe4 {[%emt 0:06:55]} Bxe4 {[%emt 0:01:13]} 13. c5 $1 {[%emt 0:03:15]} Bf6 {[%emt 0:19:31]} 14. b4 {[%emt 0:02:00]} Qc7 {[%emt 0:00:41]} 15. Qd2 {[%emt 0:04:16]} (15. b5 $14 Ne7 16. Qd2) 15... Rfe8 {[%emt 0:05:34]} (15... b6 $11) 16. Rad1 {[%emt 0:03:53]} Rad8 {[%emt 0:02:20]} 17. Rfe1 {[%emt 0:03:00]} a6 {[%emt 0:02:09]} 18. Bc3 {[%emt 0:07:26]} e5 {[%emt 0:12:41]} 19. dxe5 {[%emt 0:02:13]} Nxe5 {[%emt 0:00:07]} 20. Bxe5 {[%emt 0:01:45]} Bxe5 {[%emt 0:00:06]} 21. Nxe5 {[%emt 0:00:20]} Rxe5 {[%emt 0:00:05]} 22. Bd3 {[%emt 0:02:59]} Bxd3 {[%emt 0:03:26]} 23. Qxd3 {[%emt 0:00:48]} d4 {[%emt 0:00:21]} 24. h3 {[%emt 0:17:58]} Red5 {[%emt 0:11:08]} 25. Re4 {[%emt 0:00:30]} Qc6 {[%emt 0:00:00]} 26. Rde1 {[%emt 0:00:00]} g6 {[%emt 0:01:00]} 27. Re6 {[%emt 0:00:00]} Qc7 {[%emt 0:00:30]} 28. Re7 {[%emt 0:00:00]} R8d7 {[%emt 0:00:00]} 29. Re8+ {[%emt 0:00:00]} Kg7 {[%emt 0:00:00]} (29... Kh7 {keeps more tension.} 30. g4 Qf4 31. R1e4 Qf6) 30. R8e4 {[%emt 0:00:00]} Qc6 {[%emt 0:00:00]} 31. Rd1 {[%emt 0:00:00]} a5 {[%emt 0:00:00]} 32. g3 {[%emt 0:00:00]} (32. bxa5 Qxc5 (32... Rxc5 33. Rxd4 Rxd4 34. Qxd4+ Kh7 35. Qd7 $11) 33. a6 b5 $15) 32... Qf6 {[%emt 0:01:39]} 33. h4 {[%emt 0:00:57]} h5 {[%emt 0:00:31]} 34. Rf4 {[%emt 0:00:36]} ({Much weaker is} 34. bxa5 Qc6 $17) 34... Qc6 {[%emt 0:00:17]} 35. Re4 {[%emt 0:01:11]} axb4 {[%emt 0:00:16]} 36. axb4 {[%emt 0:00:09]} b6 {[%emt 0:00:14]} 37. cxb6 {[%emt 0:00:43]} Qxb6 {[%emt 0:00:02]} 38. Rb1 {[%emt 0:01:04]} Rb5 {[%emt 0:00:29]} 39. Qd2 {[%emt 0:00:33]} Kh7 {[%emt 0:01:29]} 40. Re8 {[%emt 0:01:06]} Qf6 {[%emt 0:00:57]} 41. Re4 {[%emt 0:00:39]} Qb6 {[%emt 0:00:23]} 42. Kh2 {[%emt 0:00:40]} Rf5 {[%emt 0:00:13]} (42... d3 {with more complications.} 43. Rc1 Rbd5 44. Re8 Qd4) 43. Rf4 {[%emt 0:00:29] The position is equal.} Rxf4 {[%emt 0:00:27]} 44. Qxf4 $11 {[%emt 0:00:10][%mdl 4096] Endgame. KQR-KQR} d3 {[%emt 0:00:46]} 45. Rd1 {[%emt 0:00:13]} Qb5 {[%emt 0:00:22]} 46. Qe3 {[%emt 0:00:33]} Qc4 {[%emt 0:00:37]} 47. Rd2 {[%emt 0:00:16]} Rd4 {[%emt 0:00:35]} 48. b5 {[%emt 0:00:44]} Qd5 {[%emt 0:00:37]} 49. b6 {[%emt 0:00:31]} Qd6 {[%emt 0:00:14][%csl LRb6,LRh4]} 50. Kg2 {[%emt 0:00:47]} Qc6+ {[%emt 0:00:41]} 51. Qf3 {[%emt 0:00:18]} Qxf3+ {[%emt 0:00:07]} 52. Kxf3 {[%emt 0:00:02]} Rb4 {[%emt 0:00:04]} 53. Rxd3 {[%emt 0:02:19] Weighted Error Value: White=0.10 (very precise) /Black=0.09 (flawless) .  Mistake:       	White=2     	Black=2      Inaccurate:     	White=4     	Black=4      OK:         	White=16    	Black=15     Strong:       	White=1     	---} 1/2-1/2

[Event "VII Copa Marcel Duchamp 2024"]
[Site "Montevideo"]
[Date "2024.02.05"]
[Round "3.1"]
[White "Meier, Georg"]
[Black "Milat, Marcel"]
[Result "1-0"]
[ECO "E04"]
[WhiteElo "2620"]
[BlackElo "2213"]
[Annotator "TA"]
[PlyCount "51"]
[EventDate "2024.02.05"]
[EventType "swiss"]
[EventCountry "URU"]
[SourceTitle "playchess.com"]
[Source "ChessBase"]
[SourceQuality "1"]
[TimeControl "5400+30"]

{[%evp 17,51,14,14,3,17,41,73,95,89,81,115,118,113,108,175,161,172,167,201,196,203,208,196,202,208,202,208,210,232,240,258,258,258,258,251,241]} 1. Nf3 {[%emt 0:00:04]} Nf6 {[%emt 0:00:33]} 2. g3 {[%emt 0:00:09]} d5 {[%emt 0:01:16]} 3. Bg2 {[%emt 0:00:06]} c5 {[%emt 0:00:54]} 4. O-O {[%emt 0:00:11]} Nc6 {[%emt 0:00:06]} 5. d4 {[%emt 0:00:06]} e6 {[%emt 0:00:13]} 6. c4 {[%emt 0:00:27]} dxc4 {[%emt 0:00:14]} 7. Ne5 {[%emt 0:08:19]} Bd7 {[%emt 0:00:22]} 8. Na3 {[%emt 0:00:14][%cal Bb1a3,Ba3c4,Bc4e5][%mdl 32]} cxd4 {[%emt 0:00:27]} 9. Naxc4 {[%emt 0:00:09]} Be7 {[%emt 0:00:10]} 10. Bf4 {[%emt 0:03:29]} O-O {[%emt 0:07:01]} 11. Qb3 {[%emt 0:03:17]} Nd5 {[%emt 0:03:03]} 12. Qxb7 {[%emt 0:01:34] White is better.} Nxe5 {[%emt 1:22:11]} 13. Nxe5 Ba4 14. Bxd5 exd5 {[%emt 0:00:00]} 15. b3 {[%emt 0:17:07] White has more active pieces.} f6 {[%emt 0:01:30]} (15... Be8 $16) 16. bxa4 $18 {[%emt 0:10:53]} fxe5 {[%emt 0:00:00]} 17. Bxe5 {[%emt 0:00:07]} Rf7 {[%emt 0:00:00][%cal Bf8f7,Bf7b7,Bb7e7,Be7e4][%mdl 32]} 18. Bxd4 {[%emt 0:09:38]} Bf6 {[%emt 0:00:00]} 19. Bxf6 {[%emt 0:00:50]} Rxb7 {[%emt 0:00:00]} 20. Bxd8 {[%emt 0:00:06]} Rxd8 {[%emt 0:00:00][%mdl 4096] Endgame. KRR-KRR} 21. Rab1 {[%emt 0:00:26] Against Rb2} Re7 {[%emt 0:00:00]} 22. e3 {[%emt 0:02:14]} Re4 {[%emt 0:00:00]} 23. Rb7 {[%emt 0:00:07]} Rxa4 {[%emt 0:00:00] [#]} 24. Rc1 $1 {[%emt 0:00:08] White has a decisive advantage.} Rc4 {[%emt 0:00:00]} 25. Rxc4 {[%emt 0:00:11]} dxc4 {[%emt 0:00:00] [#]} 26. Rc7 $1 {[%emt 0:00:50] Wards off Rc8. Black did not feel at home in the position after the opening.   Weighted Error Value: White=0.00 (flawless) /Black=0.19 (very precise) .  Mistake:       	---       	Black=1      Inaccurate:     	---       	Black=2      OK:         	White=8     	Black=5      Best:        	White=2     	---        Strong:       	White=2     	---} 1-0